[Event "SixDays IM March 2024"]
[Site "Budapest"]
[Date "2024.04.04"]
[Round "9.4"]
[White "Miszler, Levente"]
[Black "Advaitt Srikant Koduri"]
[Result "1-0"]
[ECO "D91"]
[WhiteElo "2287"]
[BlackElo "2125"]
[Annotator "RC"]
[PlyCount "59"]
[EventDate "2024.03.26"]
[EventType "tourn"]
[EventCountry "HUN"]
[SourceTitle "playchess.com"]
[Source "ChessBase"]
[SourceQuality "1"]
[TimeControl "5400+30"]

1. d4 {[%emt 0:02:41]} Nf6 {[%emt 0:00:29]} 2. c4 {[%emt 0:00:05]} g6 {[%emt 0:00:07]} 3. Nc3 {[%emt 0:00:04]} d5 {[%emt 0:00:09]} 4. Nf3 {[%emt 0:00:14]} Bg7 {[%emt 0:00:32]} 5. Bg5 {[%emt 0:00:07]} Ne4 {[%emt 0:02:34]} 6. Bf4 {[%emt 0:00:12]} Nxc3 {[%emt 0:03:47]} 7. bxc3 {[%emt 0:00:05]} O-O {[%emt 0:00:27]} 8. e3 {[%emt 0:00:42]} c5 {[%emt 0:00:15]} 9. cxd5 {[%emt 0:00:15]} cxd4 {[%emt 0:01:33]} 10. cxd4 {[%emt 0:00:11]} Qxd5 {[%emt 0:00:18]} 11. Be2 {[%emt 0:00:14]} Nc6 {[%emt 0:06:34]} 12. O-O {[%emt 0:00:49]} b6 {[%emt 0:05:06]} 13. Rc1 {[%emt 0:12:06]} Bb7 {[%emt 0:01:08]} 14. Bc4 {[%emt 0:00:31]} Qa5 {[%emt 0:07:16]} 15. Qb3 {[%emt 0:06:19]} Qb4 {[%emt 0:11:28]} 16. d5 {[%emt 0:05:39]} Qxb3 {[%emt 0:00:19]} 17. Bxb3 {[%emt 0:00:09]} Na5 {[%emt 0:08:51]} 18. Rc7 {[%emt 0:00:59]} Ba6 {[%emt 0:05:45]} 19. Rd1 {[%emt 0:01:45]} Nxb3 {[%emt 0:04:37]} 20. axb3 {[%emt 0:00:22]} Be2 {[%emt 0:01:21]} 21. Rd2 {[%emt 0:03:08]} Bxf3 {[%emt 0:01:35]} 22. gxf3 {[%emt 0:00:31]} Bf6 {[%emt 0:02:16]} 23. e4 {[%emt 0:02:08]} Rfc8 {[%emt 0:01:05]} 24. Rdc2 {[%emt 0:00:44]} Rxc7 {[%emt 0:00:14]} 25. Rxc7 {[%emt 0:00:06]} Kf8 {[%emt 0:02:56]} 26. e5 {[%emt 0:03:16]} Bg7 {[%emt 0:03:34]} 27. d6 {[%emt 0:01:48]} exd6 {[%emt 0:00:33]} 28. exd6 {[%emt 0:00:08]} a5 {[%emt 0:02:01]} 29. d7 {[%emt 0:01:30]} Rd8 {[%emt 0:01:06]} 30. Bd6+ {[%emt 0:00:08]} 1-0

[Event "SixDays IM March 2024"]
[Site "Budapest"]
[Date "2024.04.04"]
[Round "9.5"]
[White "Horvath, David"]
[Black "Radzimski, Antoni"]
[Result "1/2-1/2"]
[ECO "E11"]
[WhiteElo "2330"]
[BlackElo "2197"]
[Annotator "RC"]
[PlyCount "79"]
[EventDate "2024.03.26"]
[EventType "tourn"]
[EventCountry "HUN"]
[SourceTitle "playchess.com"]
[Source "ChessBase"]
[SourceQuality "1"]
[TimeControl "5400+30"]

1. d4 {[%emt 0:00:05]} Nf6 {[%emt 0:00:12]} 2. c4 {[%emt 0:00:08]} e6 {[%emt 0:00:04]} 3. Nf3 {[%emt 0:00:06]} Bb4+ {[%emt 0:00:11]} 4. Nbd2 {[%emt 0:00:08]} b6 {[%emt 0:00:07]} 5. a3 {[%emt 0:00:09]} Bxd2+ {[%emt 0:00:05]} 6. Qxd2 {[%emt 0:00:07]} Bb7 {[%emt 0:00:09]} 7. e3 {[%emt 0:00:07]} a5 {[%emt 0:00:06]} 8. b3 {[%emt 0:00:14]} O-O {[%emt 0:00:09]} 9. Bb2 {[%emt 0:00:26]} d6 {[%emt 0:00:16]} 10. Be2 {[%emt 0:00:07]} Nbd7 {[%emt 0:00:24]} 11. O-O {[%emt 0:00:28]} Ne4 {[%emt 0:00:22]} 12. Qc2 {[%emt 0:00:06]} f5 {[%emt 0:00:08]} 13. Rad1 {[%emt 0:09:59]} Qe8 {[%emt 0:03:16]} 14. d5 {[%emt 0:06:52]} e5 {[%emt 0:01:19]} 15. Nd2 {[%emt 0:17:05]} Nxd2 {[%emt 0:03:24]} 16. Qxd2 {[%emt 0:00:25]} Nc5 {[%emt 0:01:24]} 17. Qc2 {[%emt 0:14:19]} Bc8 {[%emt 0:11:10]} 18. b4 {[%emt 0:07:58]} Ne4 {[%emt 0:09:11]} 19. f3 {[%emt 0:11:44]} Ng5 {[%emt 0:02:02]} 20. f4 {[%emt 0:04:11]} exf4 {[%emt 0:03:38]} 21. exf4 {[%emt 0:00:08]} Ne4 {[%emt 0:04:11]} 22. Bd3 {[%emt 0:01:18]} axb4 {[%emt 0:02:23]} 23. axb4 {[%emt 0:00:04]} Ra2 {[%emt 0:13:15]} 24. Ra1 {[%emt 0:07:05]} Rxa1 {[%emt 0:02:54]} 25. Rxa1 {[%emt 0:00:05]} Qe7 {[%emt 0:02:23]} 26. Re1 {[%emt 0:06:33]} Qf7 {[%emt 0:08:53]} 27. Re3 {[%emt 0:05:14]} Re8 {[%emt 0:12:15]} 28. Bxe4 {[%emt 0:04:24]} fxe4 {[%emt 0:00:11]} 29. Rxe4 {[%emt 0:00:05]} Bf5 {[%emt 0:01:23]} 30. Rxe8+ {[%emt 0:00:06]} Qxe8 {[%emt 0:00:04]} 31. Qc3 {[%emt 0:00:07]} Qe7 {[%emt 0:00:07]} 32. h3 {[%emt 0:00:25]} h5 {[%emt 0:02:04]} 33. Kh2 {[%emt 0:01:03]} Bg6 {[%emt 0:01:42]} 34. Qd4 {[%emt 0:01:16]} Bf5 {[%emt 0:00:21]} 35. Bc3 {[%emt 0:01:19]} Bg6 {[%emt 0:00:42]} 36. Kg3 {[%emt 0:00:29]} Be4 {[%emt 0:05:03]} 37. Kf2 {[%emt 0:01:30]} Bg6 {[%emt 0:01:25]} 38. Kf3 {[%emt 0:00:07]} h4 {[%emt 0:01:05]} 39. Kg4 {[%emt 0:00:51]} Be4 {[%emt 0:00:42]} 40. g3 {[%emt 0:01:51]} 1/2-1/2